[Event "November 21 Late 2023"]
[Site "https://www.chess.com"]
[Date "2023.11.21"]
[Round "3"]
[White "Keleberda, Tymur"]
[Black "Korchmar, Vasiliy"]
[Result "0-1"]
[Board "67"]
[TimeControl "180+1"]
[WhiteFideId "14174294"]
[BlackFideId "24131750"]
[WhiteElo "2198"]
[BlackElo "2372"]
[WhiteTeam "CAN"]
[BlackTeam "RUS"]
[WhiteClock "0:00:30"]
[BlackClock "0:00:09"]

1. e4 {[%clk 0:02:43]}  c5 {[%clk 0:02:59]} 2. Nf3 {[%clk 0:02:43]}  d6 {[%clk 0:02:59]} 3. c3 {[%clk 0:02:42]}  Nf6 {[%clk 0:02:59]} 4. h3 {[%clk 0:02:42]}  g6 {[%clk 0:02:53]} 5. Bd3 {[%clk 0:02:42]}  Bg7 {[%clk 0:02:53]} 6. Bc2 {[%clk 0:02:42]}  e5 {[%clk 0:02:34]} 7. d4 {[%clk 0:02:39]}  exd4 {[%clk 0:02:34]} 8. cxd4 {[%clk 0:02:40]}  cxd4 {[%clk 0:02:35]} 9. Nxd4 {[%clk 0:02:40]}  O-O {[%clk 0:02:35]} 10. O-O {[%clk 0:02:40]}  Nc6 {[%clk 0:02:36]} 11. Nc3 {[%clk 0:02:40]}  Nxe4 {[%clk 0:02:21]} 12. Nxc6 {[%clk 0:02:19]}  Nxc3 {[%clk 0:02:21]} 13. Nxd8 {[%clk 0:02:19]}  Nxd1 {[%clk 0:02:21]} 14. Nxf7 {[%clk 0:02:17]}  Nxb2 {[%clk 0:02:17]} 15. Nh6+ {[%clk 0:02:10]}  Kh8 {[%clk 0:02:14]} 16. Rb1 {[%clk 0:02:02]}  Nc4 {[%clk 0:02:14]} 17. Rd1 {[%clk 0:01:56]}  Rb8 {[%clk 0:01:47]} 18. Be4 {[%clk 0:01:56]}  Be6 {[%clk 0:01:35]} 19. Rxb7 {[%clk 0:01:55]}  Rxb7 {[%clk 0:01:35]} 20. Bxb7 {[%clk 0:01:56]}  Rb8 {[%clk 0:01:27]} 21. Be4 {[%clk 0:01:50]}  Be5 {[%clk 0:00:52]} 22. Ng4 {[%clk 0:01:48]}  Bxg4 {[%clk 0:00:50]} 23. hxg4 {[%clk 0:01:48]}  Kg7 {[%clk 0:00:47]} 24. Bd5 {[%clk 0:01:30]}  Nb2 {[%clk 0:00:40]} 25. Rf1 {[%clk 0:01:29]}  Bd4 {[%clk 0:00:33]} 26. Be3 {[%clk 0:01:24]}  Bxe3 {[%clk 0:00:27]} 27. fxe3 {[%clk 0:01:25]}  Kh6 {[%clk 0:00:16]} 28. Rf7 {[%clk 0:01:20]}  Nd1 {[%clk 0:00:10]} 29. e4 {[%clk 0:00:59]}  Ne3 {[%clk 0:00:09]} 30. Rxa7 {[%clk 0:00:54]}  Nxg4 {[%clk 0:00:08]} 31. Rf7 {[%clk 0:00:47]}  Rb2 {[%clk 0:00:04]} 32. Rf1 {[%clk 0:00:44]}  Ne3 {[%clk 0:00:04]} 33. Rf2 {[%clk 0:00:44]}  Rb1+ {[%clk 0:00:04]} 34. Kh2 {[%clk 0:00:44]}  Ng4+ {[%clk 0:00:05]} 35. Kg3 {[%clk 0:00:44]}  Nxf2 {[%clk 0:00:05]} 36. Kxf2 {[%clk 0:00:45]}  Kg5 {[%clk 0:00:06]} 37. a4 {[%clk 0:00:40]}  Ra1 {[%clk 0:00:06]} 38. Bc6 {[%clk 0:00:40]}  Kf4 {[%clk 0:00:06]} 39. Ke2 {[%clk 0:00:34]}  Ra2+ {[%clk 0:00:05]} 40. Kd3 {[%clk 0:00:35]}  Rxg2 {[%clk 0:00:05]} 41. Kd4 {[%clk 0:00:29]}  Ra2 {[%clk 0:00:04]} 42. Kd5 {[%clk 0:00:30]}  Rd2+ {[%clk 0:00:02]} 43. Ke6 {[%clk 0:00:30]}  h5 {[%clk 0:00:03]} 44. a5 {[%clk 0:00:29]}  Ra2 {[%clk 0:00:02]} 45. Kxd6 {[%clk 0:00:25]}  Rxa5 {[%clk 0:00:02]} 46. Bd5 {[%clk 0:00:25]}  h4 {[%clk 0:00:02]} 47. e5 {[%clk 0:00:25]}  h3 {[%clk 0:00:02]} 48. e6 {[%clk 0:00:26]}  h2 {[%clk 0:00:03]} 49. e7 {[%clk 0:00:26]}  Rxd5+ {[%clk 0:00:03]} 50. Kxd5 {[%clk 0:00:26]}  h1=Q+ {[%clk 0:00:03]} 51. Ke6 {[%clk 0:00:26]}  Qh8 {[%clk 0:00:04]} 52. Kf7 {[%clk 0:00:26]}  g5 {[%clk 0:00:04]} 53. e8=Q {[%clk 0:00:26]}  Qxe8+ {[%clk 0:00:04]} 54. Kxe8 {[%clk 0:00:27]}  g4 {[%clk 0:00:05]} 55. Kd7 {[%clk 0:00:28]}  g3 {[%clk 0:00:06]} 56. Ke6 {[%clk 0:00:28]}  g2 {[%clk 0:00:07]} 57. Kd5 {[%clk 0:00:29]}  g1=Q {[%clk 0:00:08]} 58. Kc4 {[%clk 0:00:29]}  Qe3 {[%clk 0:00:08]} 59. Kd5 {[%clk 0:00:29]}  Qe5+ {[%clk 0:00:08]} 60. Kc6 {[%clk 0:00:30]}  Qd4 {[%clk 0:00:09]} 0-1

[Event "November 21 Late 2023"]
[Site "https://www.chess.com"]
[Date "2023.11.21"]
[Round "3"]
[White "Goltsev, Dmitry"]
[Black "Suder, Jakub"]
[Result "1-0"]
[Board "68"]
[TimeControl "180+1"]
[WhiteFideId "24176710"]
[BlackFideId "1195310"]
[WhiteElo "2370"]
[BlackElo "2248"]
[WhiteTeam "RUS"]
[BlackTeam "POL"]
[WhiteClock "0:00:13"]
[BlackClock "0:00:37"]

1. e4 {[%clk 0:02:04]}  c5 {[%clk 0:02:59]} 2. Nf3 {[%clk 0:02:02]}  e6 {[%clk 0:03:00]} 3. d4 {[%clk 0:02:01]}  cxd4 {[%clk 0:03:01]} 4. Nxd4 {[%clk 0:02:02]}  Nc6 {[%clk 0:03:01]} 5. Nc3 {[%clk 0:02:01]}  Nf6 {[%clk 0:03:01]} 6. Be2 {[%clk 0:02:01]}  Bb4 {[%clk 0:02:58]} 7. Qd3 {[%clk 0:02:01]}  d5 {[%clk 0:02:57]} 8. exd5 {[%clk 0:02:01]}  Nxd5 {[%clk 0:02:57]} 9. Bd2 {[%clk 0:02:00]}  Nxc3 {[%clk 0:02:48]} 10. bxc3 {[%clk 0:02:00]}  Be7 {[%clk 0:02:48]} 11. O-O {[%clk 0:01:59]}  O-O {[%clk 0:02:48]} 12. Rab1 {[%clk 0:01:57]}  Qc7 {[%clk 0:02:45]} 13. Rfe1 {[%clk 0:01:52]}  Rd8 {[%clk 0:02:41]} 14. Nb5 {[%clk 0:01:35]}  Rxd3 {[%clk 0:02:24]} 15. Nxc7 {[%clk 0:01:34]}  Rxd2 {[%clk 0:02:24]} 16. Nxa8 {[%clk 0:01:34]}  Bd8 {[%clk 0:02:07]} 17. Bf3 {[%clk 0:01:22]}  Na5 {[%clk 0:01:26]} 18. Red1 {[%clk 0:01:20]}  Rxd1+ {[%clk 0:01:23]} 19. Rxd1 {[%clk 0:01:20]}  Bf6 {[%clk 0:01:23]} 20. Nc7 {[%clk 0:01:18]}  Kf8 {[%clk 0:01:23]} 21. Nb5 {[%clk 0:01:16]}  Ke7 {[%clk 0:01:20]} 22. Nxa7 {[%clk 0:01:15]}  Bd7 {[%clk 0:01:19]} 23. c4 {[%clk 0:01:12]}  Nxc4 {[%clk 0:01:19]} 24. Bxb7 {[%clk 0:01:11]}  Nb2 {[%clk 0:01:18]} 25. Rb1 {[%clk 0:00:47]}  Kd6 {[%clk 0:01:18]} 26. c4 {[%clk 0:00:35]}  Nxc4 {[%clk 0:00:59]} 27. Nb5+ {[%clk 0:00:26]}  Kc5 {[%clk 0:00:56]} 28. a4 {[%clk 0:00:24]}  Na5 {[%clk 0:00:48]} 29. Bf3 {[%clk 0:00:21]}  e5 {[%clk 0:00:48]} 30. Nc3 {[%clk 0:00:14]}  Bd8 {[%clk 0:00:37]} 31. Rd1 {[%clk 0:00:13]} 1-0

[Event "November 21 Late 2023"]
[Site "https://www.chess.com"]
[Date "2023.11.21"]
[Round "3"]
[White "Joie, Sebastien"]
[Black "Sourath Biswas"]
[Result "1-0"]
[Board "70"]
[TimeControl "180+1"]
[WhiteFideId "650420"]
[BlackFideId "35091484"]
[WhiteElo "2396"]
[BlackElo "2171"]
[WhiteTeam "FRA"]
[BlackTeam "IND"]
[WhiteClock "0:02:26"]
[BlackClock "0:01:01"]

1. d4 {[%clk 0:02:58]}  Nf6 {[%clk 0:02:59]} 2. c4 {[%clk 0:02:55]}  g6 {[%clk 0:02:59]} 3. Nc3 {[%clk 0:02:55]}  Bg7 {[%clk 0:02:53]} 4. e4 {[%clk 0:02:55]}  O-O {[%clk 0:02:53]} 5. f4 {[%clk 0:02:50]}  d6 {[%clk 0:02:53]} 6. Nf3 {[%clk 0:02:50]}  c5 {[%clk 0:02:51]} 7. d5 {[%clk 0:02:50]}  e6 {[%clk 0:02:51]} 8. Be2 {[%clk 0:02:51]}  exd5 {[%clk 0:02:45]} 9. cxd5 {[%clk 0:02:47]}  Re8 {[%clk 0:02:42]} 10. e5 {[%clk 0:02:47]}  dxe5 {[%clk 0:02:42]} 11. fxe5 {[%clk 0:02:48]}  Ng4 {[%clk 0:02:43]} 12. e6 {[%clk 0:02:48]}  fxe6 {[%clk 0:02:41]} 13. d6 {[%clk 0:02:48]}  Nc6 {[%clk 0:02:38]} 14. O-O {[%clk 0:02:49]}  Nd4 {[%clk 0:02:36]} 15. Ne4 {[%clk 0:02:49]}  Qb6 {[%clk 0:02:31]} 16. Nxd4 {[%clk 0:02:40]}  Bxd4+ {[%clk 0:02:29]} 17. Kh1 {[%clk 0:02:40]}  Nf2+ {[%clk 0:01:12]} 18. Nxf2 {[%clk 0:02:37]}  Qxd6 {[%clk 0:01:13]} 19. Ne4 {[%clk 0:02:26]}  Qe5 {[%clk 0:01:01]} 1-0

[Event "November 21 Late 2023"]
[Site "https://www.chess.com"]
[Date "2023.11.21"]
[Round "3"]
[White "Arabidze, Meri"]
[Black "Swicarz, Maciej"]
[Result "1-0"]
[Board "71"]
[TimeControl "180+1"]
[WhiteFideId "13604040"]
[BlackFideId "1113585"]
[WhiteElo "2416"]
[BlackElo "2127"]
[WhiteTeam "GEO"]
[BlackTeam "POL"]
[WhiteClock "0:01:11"]
[BlackClock "0:00:00"]

1. Nf3 {[%clk 0:03:00]}  c5 {[%clk 0:02:58]} 2. b3 {[%clk 0:03:01]}  Nc6 {[%clk 0:02:57]} 3. Bb2 {[%clk 0:03:02]}  Nf6 {[%clk 0:02:55]} 4. e3 {[%clk 0:03:02]}  e6 {[%clk 0:02:52]} 5. c4 {[%clk 0:03:02]}  Be7 {[%clk 0:02:50]} 6. Nc3 {[%clk 0:02:59]}  O-O {[%clk 0:02:50]} 7. Qc2 {[%clk 0:02:59]}  a6 {[%clk 0:02:49]} 8. Rd1 {[%clk 0:02:58]}  Rb8 {[%clk 0:02:47]} 9. d4 {[%clk 0:02:58]}  cxd4 {[%clk 0:02:47]} 10. exd4 {[%clk 0:02:58]}  d5 {[%clk 0:02:46]} 11. a3 {[%clk 0:02:53]}  Re8 {[%clk 0:02:20]} 12. Bd3 {[%clk 0:02:50]}  h6 {[%clk 0:02:17]} 13. O-O {[%clk 0:02:49]}  Nh5 {[%clk 0:01:57]} 14. Rfe1 {[%clk 0:02:45]}  Nf4 {[%clk 0:01:55]} 15. Bf1 {[%clk 0:02:45]}  Na7 {[%clk 0:01:27]} 16. g3 {[%clk 0:02:44]}  Ng6 {[%clk 0:01:25]} 17. c5 {[%clk 0:02:36]}  b6 {[%clk 0:01:21]} 18. b4 {[%clk 0:02:36]}  a5 {[%clk 0:01:18]} 19. Bc1 {[%clk 0:02:35]}  Bf6 {[%clk 0:01:10]} 20. h4 {[%clk 0:02:32]}  axb4 {[%clk 0:01:01]} 21. axb4 {[%clk 0:02:33]}  bxc5 {[%clk 0:01:00]} 22. bxc5 {[%clk 0:02:34]}  Nc6 {[%clk 0:01:00]} 23. h5 {[%clk 0:02:34]}  Nf8 {[%clk 0:00:58]} 24. Bf4 {[%clk 0:02:34]}  Rb4 {[%clk 0:00:55]} 25. Bb5 {[%clk 0:02:25]}  Bd7 {[%clk 0:00:52]} 26. Bxc6 {[%clk 0:02:24]}  Bxc6 {[%clk 0:00:53]} 27. Be5 {[%clk 0:02:19]}  Nd7 {[%clk 0:00:48]} 28. Bxf6 {[%clk 0:02:15]}  Nxf6 {[%clk 0:00:49]} 29. Ne5 {[%clk 0:02:15]}  Qc7 {[%clk 0:00:41]} 30. Rb1 {[%clk 0:02:07]}  Rbb8 {[%clk 0:00:12]} 31. Qe2 {[%clk 0:02:01]}  Bd7 {[%clk 0:00:09]} 32. Qa6 {[%clk 0:01:51]}  Nxh5 {[%clk 0:00:06]} 33. c6 {[%clk 0:01:33]}  Bc8 {[%clk 0:00:05]} 34. Rxb8 {[%clk 0:01:22]}  Bxa6 {[%clk 0:00:05]} 35. Rxe8+ {[%clk 0:01:22]}  Kh7 {[%clk 0:00:06]} 36. Ra1 {[%clk 0:01:18]}  Bc4 {[%clk 0:00:04]} 37. Raa8 {[%clk 0:01:18]}  g5 {[%clk 0:00:03]} 38. Rh8+ {[%clk 0:01:17]}  Kg7 {[%clk 0:00:03]} 39. Rag8+ {[%clk 0:01:17]}  Kf6 {[%clk 0:00:03]} 40. Rxh6+ {[%clk 0:01:16]}  Kf5 {[%clk 0:00:03]} 41. Rxh5 {[%clk 0:01:14]}  f6 {[%clk 0:00:02]} 42. Rf8 {[%clk 0:01:10]}  Qa5 {[%clk 0:00:00]} 43. g4+ {[%clk 0:01:11]} 1-0

[Event "November 21 Late 2023"]
[Site "https://www.chess.com"]
[Date "2023.11.21"]
[Round "3"]
[White "YouShallNotPass001"]
[Black "Taboas Rodriguez, Daniel"]
[Result "0-1"]
[Board "73"]
[TimeControl "180+1"]
[BlackFideId "2208466"]
[WhiteElo "2445"]
[BlackElo "2365"]
[BlackTeam "ESP"]
[WhiteClock "0:01:49"]
[BlackClock "0:01:47"]

1. Nf3 {[%clk 0:03:00]}  Nf6 {[%clk 0:02:59]} 2. e3 {[%clk 0:03:01]}  g6 {[%clk 0:02:59]} 3. Be2 {[%clk 0:03:02]}  Bg7 {[%clk 0:02:59]} 4. O-O {[%clk 0:03:03]}  O-O {[%clk 0:02:59]} 5. d4 {[%clk 0:03:04]}  b6 {[%clk 0:03:00]} 6. c4 {[%clk 0:03:05]}  Bb7 {[%clk 0:03:00]} 7. b4 {[%clk 0:03:06]}  d6 {[%clk 0:02:56]} 8. Nc3 {[%clk 0:03:06]}  Nbd7 {[%clk 0:02:56]} 9. a4 {[%clk 0:03:05]}  e5 {[%clk 0:02:56]} 10. Ba3 {[%clk 0:03:04]}  exd4 {[%clk 0:02:54]} 11. exd4 {[%clk 0:03:03]}  Re8 {[%clk 0:02:54]} 12. Rc1 {[%clk 0:03:02]}  Ne4 {[%clk 0:02:53]} 13. Nxe4 {[%clk 0:03:02]}  Bxe4 {[%clk 0:02:53]} 14. Nd2 {[%clk 0:02:54]}  Bb7 {[%clk 0:02:46]} 15. Bf3 {[%clk 0:02:52]}  Bxf3 {[%clk 0:02:44]} 16. Nxf3 {[%clk 0:02:53]}  Nf6 {[%clk 0:02:43]} 17. c5 {[%clk 0:02:51]}  Nd5 {[%clk 0:02:23]} 18. g3 {[%clk 0:02:43]}  Qf6 {[%clk 0:02:19]} 19. Kg2 {[%clk 0:02:43]}  Re3 {[%clk 0:02:11]} 20. Bb2 {[%clk 0:02:24]}  Rae8 {[%clk 0:02:09]} 21. cxd6 {[%clk 0:02:12]}  cxd6 {[%clk 0:02:02]} 22. b5 {[%clk 0:01:53]}  Re2 {[%clk 0:02:00]} 23. Qb3 {[%clk 0:01:53]}  Ne3+ {[%clk 0:01:51]} 24. Kh3 {[%clk 0:01:49]}  Qf5+ {[%clk 0:01:47]} 0-1

[Event "November 21 Late 2023"]
[Site "https://www.chess.com"]
[Date "2023.11.21"]
[Round "3"]
[White "Jimenez Ruano, Adrian"]
[Black "Spata, German"]
[Result "1-0"]
[Board "75"]
[TimeControl "180+1"]
[WhiteFideId "22276050"]
[BlackFideId "113026"]
[WhiteElo "2215"]
[BlackElo "2260"]
[WhiteTeam "ESP"]
[BlackTeam "ARG"]
[WhiteClock "0:00:12"]
[BlackClock "0:00:00"]

1. Nf3 {[%clk 0:03:00]}  Nf6 {[%clk 0:02:57]} 2. b3 {[%clk 0:02:59]}  b6 {[%clk 0:02:57]} 3. Bb2 {[%clk 0:02:59]}  e6 {[%clk 0:02:57]} 4. e3 {[%clk 0:02:58]}  Bb7 {[%clk 0:02:58]} 5. Be2 {[%clk 0:02:58]}  Be7 {[%clk 0:02:58]} 6. O-O {[%clk 0:02:59]}  O-O {[%clk 0:02:57]} 7. c4 {[%clk 0:03:00]}  c5 {[%clk 0:02:57]} 8. Nc3 {[%clk 0:03:00]}  d6 {[%clk 0:02:54]} 9. d3 {[%clk 0:02:58]}  a6 {[%clk 0:02:53]} 10. Qd2 {[%clk 0:02:59]}  Nc6 {[%clk 0:02:51]} 11. Rad1 {[%clk 0:02:58]}  Rc8 {[%clk 0:02:49]} 12. Rfe1 {[%clk 0:02:56]}  Qc7 {[%clk 0:02:48]} 13. Qc1 {[%clk 0:02:55]}  Rfd8 {[%clk 0:02:48]} 14. Qa1 {[%clk 0:02:56]}  Qb8 {[%clk 0:02:46]} 15. Ne4 {[%clk 0:02:53]}  Nxe4 {[%clk 0:02:38]} 16. dxe4 {[%clk 0:02:53]}  Bf8 {[%clk 0:02:38]} 17. Rd2 {[%clk 0:02:36]}  Ne7 {[%clk 0:02:34]} 18. e5 {[%clk 0:02:32]}  d5 {[%clk 0:02:24]} 19. Red1 {[%clk 0:02:33]}  dxc4 {[%clk 0:02:20]} 20. bxc4 {[%clk 0:02:32]}  Rxd2 {[%clk 0:02:15]} 21. Rxd2 {[%clk 0:02:33]}  Rd8 {[%clk 0:02:14]} 22. Qd1 {[%clk 0:02:34]}  Nc6 {[%clk 0:02:03]} 23. h4 {[%clk 0:01:59]}  h6 {[%clk 0:01:54]} 24. Nh2 {[%clk 0:01:40]}  Rxd2 {[%clk 0:01:51]} 25. Qxd2 {[%clk 0:01:41]}  Nxe5 {[%clk 0:01:42]} 26. f4 {[%clk 0:01:38]}  Nc6 {[%clk 0:01:34]} 27. Ng4 {[%clk 0:01:37]}  Qd8 {[%clk 0:01:17]} 28. Qe1 {[%clk 0:01:34]}  Ne7 {[%clk 0:00:58]} 29. Nxh6+ {[%clk 0:00:55]}  gxh6 {[%clk 0:00:58]} 30. Qc3 {[%clk 0:00:55]}  Ng6 {[%clk 0:00:26]} 31. h5 {[%clk 0:00:56]}  Qh4 {[%clk 0:00:11]} 32. hxg6 {[%clk 0:00:55]}  fxg6 {[%clk 0:00:10]} 33. Qh8+ {[%clk 0:00:52]}  Kf7 {[%clk 0:00:11]} 34. Qh7+ {[%clk 0:00:51]}  Ke8 {[%clk 0:00:10]} 35. Qxb7 {[%clk 0:00:22]}  Qe1+ {[%clk 0:00:11]} 36. Bf1 {[%clk 0:00:22]}  Qxe3+ {[%clk 0:00:11]} 37. Kh1 {[%clk 0:00:21]}  Qxf4 {[%clk 0:00:10]} 38. Qc6+ {[%clk 0:00:12]}  Kf7 {[%clk 0:00:09]} 39. Qd7+ {[%clk 0:00:07]}  Be7 {[%clk 0:00:08]} 40. Qd3 {[%clk 0:00:05]}  Qh4+ {[%clk 0:00:05]} 41. Kg1 {[%clk 0:00:04]}  Bf6 {[%clk 0:00:05]} 42. Qf3 {[%clk 0:00:04]}  Qg5 {[%clk 0:00:03]} 43. Bc3 {[%clk 0:00:03]}  Qf5 {[%clk 0:00:02]} 44. Qb7+ {[%clk 0:00:03]}  Be7 {[%clk 0:00:03]} 45. Qf3 {[%clk 0:00:02]}  g5 {[%clk 0:00:02]} 46. Kf2 {[%clk 0:00:02]}  Qxf3+ {[%clk 0:00:02]} 47. Kxf3 {[%clk 0:00:03]}  Kg6 {[%clk 0:00:03]} 48. Bd3+ {[%clk 0:00:03]}  Kf7 {[%clk 0:00:04]} 49. Be4 {[%clk 0:00:03]}  Bf6 {[%clk 0:00:04]} 50. Bd2 {[%clk 0:00:03]}  b5 {[%clk 0:00:04]} 51. Bb7 {[%clk 0:00:04]}  Bd4 {[%clk 0:00:04]} 52. Bxa6 {[%clk 0:00:04]}  bxc4 {[%clk 0:00:05]} 53. Bxc4 {[%clk 0:00:05]}  Kf6 {[%clk 0:00:05]} 54. a4 {[%clk 0:00:05]}  e5 {[%clk 0:00:06]} 55. Bd3 {[%clk 0:00:06]}  Ke6 {[%clk 0:00:05]} 56. Be4 {[%clk 0:00:05]}  Kd6 {[%clk 0:00:05]} 57. a5 {[%clk 0:00:06]}  c4 {[%clk 0:00:06]} 58. a6 {[%clk 0:00:07]}  Kc7 {[%clk 0:00:06]} 59. Bc3 {[%clk 0:00:04]}  Kb6 {[%clk 0:00:06]} 60. Bxd4+ {[%clk 0:00:04]}  exd4 {[%clk 0:00:06]} 61. Bd5 {[%clk 0:00:05]}  c3 {[%clk 0:00:06]} 62. Bb3 {[%clk 0:00:04]}  Kxa6 {[%clk 0:00:07]} 63. Ke4 {[%clk 0:00:05]}  Kb6 {[%clk 0:00:06]} 64. Kxd4 {[%clk 0:00:05]}  h5 {[%clk 0:00:07]} 65. Kxc3 {[%clk 0:00:05]}  h4 {[%clk 0:00:08]} 66. Kd4 {[%clk 0:00:06]}  g4 {[%clk 0:00:08]} 67. Bd5 {[%clk 0:00:05]}  h3 {[%clk 0:00:08]} 68. g3 {[%clk 0:00:06]}  Kc7 {[%clk 0:00:06]} 69. Ke3 {[%clk 0:00:06]}  Kd6 {[%clk 0:00:07]} 70. Bh1 {[%clk 0:00:07]}  Ke5 {[%clk 0:00:07]} 71. Bc6 {[%clk 0:00:06]}  Kf5 {[%clk 0:00:08]} 72. Bd7+ {[%clk 0:00:06]}  Kg5 {[%clk 0:00:08]} 73. Bc6 {[%clk 0:00:06]}  Kf5 {[%clk 0:00:08]} 74. Bd7+ {[%clk 0:00:06]}  Kg5 {[%clk 0:00:09]} 75. Bc8 {[%clk 0:00:06]}  h2 {[%clk 0:00:08]} 76. Bb7 {[%clk 0:00:06]}  Kf5 {[%clk 0:00:08]} 77. Be4+ {[%clk 0:00:05]}  Ke5 {[%clk 0:00:09]} 78. Bh1 {[%clk 0:00:06]}  Kf5 {[%clk 0:00:08]} 79. Bc6 {[%clk 0:00:07]}  Ke5 {[%clk 0:00:08]} 80. Be4 {[%clk 0:00:07]}  Kd6 {[%clk 0:00:08]} 81. Kf4 {[%clk 0:00:08]}  Kc5 {[%clk 0:00:08]} 82. Kxg4 {[%clk 0:00:08]}  Kd4 {[%clk 0:00:09]} 83. Bh1 {[%clk 0:00:08]}  Ke3 {[%clk 0:00:10]} 84. Kh3 {[%clk 0:00:09]}  Kf2 {[%clk 0:00:08]} 85. Kxh2 {[%clk 0:00:10]}  Ke3 {[%clk 0:00:08]} 86. Kh3 {[%clk 0:00:11]}  Kd4 {[%clk 0:00:09]} 87. Kg4 {[%clk 0:00:11]}  Ke5 {[%clk 0:00:10]} 88. Kg5 {[%clk 0:00:12]}  Kd6 {[%clk 0:00:00]} 89. Kf6 {[%clk 0:00:12]} 1-0

[Event "November 21 Late 2023"]
[Site "https://www.chess.com"]
[Date "2023.11.21"]
[Round "3"]
[White "Koksal, Ege"]
[Black "Vadim_Galchenko"]
[Result "0-1"]
[Board "76"]
[TimeControl "180+1"]
[WhiteFideId "6317626"]
[WhiteElo "2230"]
[BlackElo "2443"]
[WhiteTeam "TUR"]
[WhiteClock "0:00:13"]
[BlackClock "0:00:13"]

1. c4 {[%clk 0:03:00]}  f5 {[%clk 0:02:59]} 2. Nc3 {[%clk 0:03:01]}  Nf6 {[%clk 0:03:00]} 3. g3 {[%clk 0:03:01]}  g6 {[%clk 0:03:00]} 4. Bg2 {[%clk 0:03:02]}  Bg7 {[%clk 0:03:01]} 5. e4 {[%clk 0:03:02]}  d6 {[%clk 0:03:00]} 6. exf5 {[%clk 0:02:59]}  Bxf5 {[%clk 0:03:01]} 7. Bxb7 {[%clk 0:02:59]}  Nbd7 {[%clk 0:03:01]} 8. Bxa8 {[%clk 0:02:57]}  Qxa8 {[%clk 0:03:01]} 9. Qf3 {[%clk 0:02:54]}  Ne4 {[%clk 0:02:47]} 10. Kf1 {[%clk 0:01:46]}  O-O {[%clk 0:02:29]} 11. Qg2 {[%clk 0:01:04]}  Ne5 {[%clk 0:01:47]} 12. d4 {[%clk 0:00:50]}  Nxc4 {[%clk 0:01:17]} 13. Nge2 {[%clk 0:00:12]}  Ned2+ {[%clk 0:00:51]} 14. Bxd2 {[%clk 0:00:13]}  Nxd2+ {[%clk 0:00:52]} 15. Kg1 {[%clk 0:00:13]}  Nf3+ {[%clk 0:00:52]} 16. Kf1 {[%clk 0:00:14]}  g5 {[%clk 0:00:25]} 17. h3 {[%clk 0:00:11]}  h5 {[%clk 0:00:24]} 18. g4 {[%clk 0:00:08]}  Bg6 {[%clk 0:00:23]} 19. d5 {[%clk 0:00:07]}  h4 {[%clk 0:00:20]} 20. Rd1 {[%clk 0:00:05]}  Be5 {[%clk 0:00:20]} 21. Ng1 {[%clk 0:00:05]}  Nd4 {[%clk 0:00:15]} 22. Nge2 {[%clk 0:00:05]}  Nxe2 {[%clk 0:00:12]} 23. Nxe2 {[%clk 0:00:04]}  Bxb2 {[%clk 0:00:11]} 24. Kg1 {[%clk 0:00:04]}  Be5 {[%clk 0:00:12]} 25. Rf1 {[%clk 0:00:02]}  Qb7 {[%clk 0:00:12]} 26. f4 {[%clk 0:00:03]}  Qb6+ {[%clk 0:00:12]} 27. Qf2 {[%clk 0:00:03]}  gxf4 {[%clk 0:00:11]} 28. Qxb6 {[%clk 0:00:03]}  axb6 {[%clk 0:00:11]} 29. Kg2 {[%clk 0:00:03]}  Be4+ {[%clk 0:00:11]} 30. Rf3 {[%clk 0:00:04]}  Ra8 {[%clk 0:00:11]} 31. Rc1 {[%clk 0:00:04]}  Rxa2 {[%clk 0:00:10]} 32. Kf2 {[%clk 0:00:04]}  Bxf3 {[%clk 0:00:09]} 33. Kxf3 {[%clk 0:00:05]}  Ra3+ {[%clk 0:00:09]} 34. Ke4 {[%clk 0:00:05]}  Kf7 {[%clk 0:00:08]} 35. Kf5 {[%clk 0:00:06]}  Rxh3 {[%clk 0:00:09]} 36. Rxc7 {[%clk 0:00:06]}  Re3 {[%clk 0:00:08]} 37. Ng1 {[%clk 0:00:05]}  h3 {[%clk 0:00:08]} 38. Nxh3 {[%clk 0:00:05]}  Rxh3 {[%clk 0:00:08]} 39. g5 {[%clk 0:00:06]}  Rh5 {[%clk 0:00:09]} 40. Rc3 {[%clk 0:00:05]}  Bxc3 {[%clk 0:00:08]} 41. Ke4 {[%clk 0:00:04]}  Kg6 {[%clk 0:00:09]} 42. Kd3 {[%clk 0:00:05]}  Rxg5 {[%clk 0:00:09]} 43. Kc4 {[%clk 0:00:06]}  Re5 {[%clk 0:00:10]} 44. Kb5 {[%clk 0:00:06]}  Rxd5+ {[%clk 0:00:10]} 45. Kc6 {[%clk 0:00:07]}  Rc5+ {[%clk 0:00:11]} 46. Kd7 {[%clk 0:00:08]}  f3 {[%clk 0:00:11]} 47. Kxe7 {[%clk 0:00:09]}  f2 {[%clk 0:00:12]} 48. Ke8 {[%clk 0:00:10]}  f1=Q {[%clk 0:00:13]} 49. Kd7 {[%clk 0:00:10]}  Qf7+ {[%clk 0:00:13]} 50. Kd8 {[%clk 0:00:11]}  Qc7+ {[%clk 0:00:13]} 51. Ke8 {[%clk 0:00:12]}  Re5+ {[%clk 0:00:13]} 52. Kf8 {[%clk 0:00:13]}  Qf7# {[%clk 0:00:13]} 0-1

[Event "November 21 Late 2023"]
[Site "https://www.chess.com"]
[Date "2023.11.21"]
[Round "3"]
[White "topce"]
[Black "Maltsevskaya, Aleksandra"]
[Result "1-0"]
[Board "78"]
[TimeControl "180+1"]
[BlackFideId "24174041"]
[WhiteElo "2438"]
[BlackElo "2296"]
[BlackTeam "POL"]
[WhiteClock "0:00:31"]
[BlackClock "0:00:00"]

1. c4 {[%clk 0:03:00]}  Nf6 {[%clk 0:02:39]} 2. Nc3 {[%clk 0:02:59]}  g6 {[%clk 0:02:38]} 3. d4 {[%clk 0:02:56]}  Bg7 {[%clk 0:02:38]} 4. e4 {[%clk 0:02:57]}  d6 {[%clk 0:02:38]} 5. f4 {[%clk 0:02:58]}  O-O {[%clk 0:02:38]} 6. Nf3 {[%clk 0:02:58]}  Bg4 {[%clk 0:02:38]} 7. d5 {[%clk 0:02:55]}  e6 {[%clk 0:02:37]} 8. dxe6 {[%clk 0:02:54]}  Bxe6 {[%clk 0:02:35]} 9. Bd3 {[%clk 0:02:53]}  Nc6 {[%clk 0:02:35]} 10. f5 {[%clk 0:02:53]}  Bd7 {[%clk 0:02:34]} 11. O-O {[%clk 0:02:52]}  h6 {[%clk 0:02:34]} 12. fxg6 {[%clk 0:02:45]}  fxg6 {[%clk 0:02:35]} 13. e5 {[%clk 0:02:45]}  Nxe5 {[%clk 0:02:34]} 14. Nxe5 {[%clk 0:02:45]}  dxe5 {[%clk 0:02:35]} 15. Bxg6 {[%clk 0:02:45]}  Be6 {[%clk 0:02:26]} 16. b3 {[%clk 0:02:29]}  c6 {[%clk 0:01:38]} 17. Qxd8 {[%clk 0:02:08]}  Rfxd8 {[%clk 0:01:32]} 18. Ba3 {[%clk 0:02:02]}  Rd2 {[%clk 0:01:12]} 19. Rfd1 {[%clk 0:01:33]}  Rad8 {[%clk 0:01:08]} 20. Be7 {[%clk 0:01:20]}  Rxd1+ {[%clk 0:00:56]} 21. Rxd1 {[%clk 0:01:21]}  Rxd1+ {[%clk 0:00:56]} 22. Nxd1 {[%clk 0:01:22]}  Nd7 {[%clk 0:00:41]} 23. Ne3 {[%clk 0:01:16]}  Bf8 {[%clk 0:00:16]} 24. Bxf8 {[%clk 0:01:06]}  Kxf8 {[%clk 0:00:17]} 25. Kf2 {[%clk 0:01:02]}  Ke7 {[%clk 0:00:17]} 26. Kf3 {[%clk 0:01:00]}  Nc5 {[%clk 0:00:15]} 27. Bc2 {[%clk 0:00:55]}  a5 {[%clk 0:00:14]} 28. Ng4 {[%clk 0:00:50]}  e4+ {[%clk 0:00:12]} 29. Kg3 {[%clk 0:00:46]}  Bxg4 {[%clk 0:00:08]} 30. Kxg4 {[%clk 0:00:46]}  Kf6 {[%clk 0:00:09]} 31. Kf4 {[%clk 0:00:45]}  a4 {[%clk 0:00:07]} 32. b4 {[%clk 0:00:40]}  Na6 {[%clk 0:00:04]} 33. a3 {[%clk 0:00:39]}  c5 {[%clk 0:00:01]} 34. b5 {[%clk 0:00:36]}  Nb4 {[%clk 0:00:00]} 35. Bxe4 {[%clk 0:00:31]} 1-0